[Event "12th National Amateur Chess-ch 2025"]
[Site "Bihar"]
[Date "2025.03.28"]
[Round "6.12"]
[White "Shreyansh Das"]
[Black "Vamsi Krishna, R."]
[Result "0-1"]
[Annotator "NA RC"]
[ECO "C01"]
[WhiteElo "1583"]
[BlackElo "1620"]
[PlyCount "88"]
[EventDate "2025.03.25"]
[EventCountry "IND"]
[SourceTitle "playchess.com"]
[Source "ChessBase"]
[SourceQuality "1"]
[TimeControl "5400+30"]

1. e4 {[%emt 0:00:02]} e6 {[%emt 0:06:10]} 2. d4 {[%emt 0:00:20]} d5 {[%emt 0:00:04]} 3. exd5 {[%emt 0:00:06]} exd5 {[%emt 0:00:01]} 4. Bd3 {[%emt 0:00:10]} Nc6 {[%emt 0:00:09]} 5. c3 {[%emt 0:00:06]} Bd6 {[%emt 0:00:28]} 6. Nf3 {[%emt 0:00:10]} Nge7 {[%emt 0:00:09]} 7. O-O {[%emt 0:00:45]} Bg4 {[%emt 0:00:44]} 8. Be3 {[%emt 0:00:20]} Bh5 {[%emt 0:07:10]} 9. Nbd2 {[%emt 0:00:21]} Bg6 {[%emt 0:00:11]} 10. Nb3 {[%emt 0:02:04]} O-O {[%emt 0:14:25]} 11. Bxg6 {[%emt 0:01:40]} Nxg6 {[%emt 0:00:29]} 12. Qd3 {[%emt 0:02:07]} Nce7 {[%emt 0:12:51]} 13. g3 {[%emt 0:04:44]} Qc8 {[%emt 0:00:30]} 14. c4 {[%emt 0:01:17]} dxc4 {[%emt 0:01:40]} 15. Qxc4 {[%emt 0:00:28]} c6 {[%emt 0:00:36]} 16. Nbd2 {[%emt 0:00:52]} Nd5 {[%emt 0:00:13]} 17. Ne4 {[%emt 0:00:14]} Be7 {[%emt 0:01:26]} 18. Kg2 {[%emt 0:00:40]} Qg4 {[%emt 0:00:15]} 19. Ned2 {[%emt 0:03:03]} Bd6 {[%emt 0:06:18]} 20. Kh1 {[%emt 0:01:13]} Rfe8 {[%emt 0:02:37]} 21. Rfe1 {[%emt 0:00:18]} h6 {[%emt 0:01:49]} 22. Re2 {[%emt 0:01:34]} Re7 {[%emt 0:00:27]} 23. Rae1 {[%emt 0:00:12]} Rae8 {[%emt 0:01:01]} 24. Ne5 {[%emt 0:02:02]} Bxe5 {[%emt 0:02:38]} 25. dxe5 {[%emt 0:00:17]} Nxe5 {[%emt 0:00:37]} 26. Qb3 {[%emt 0:00:19]} Nf3 {[%emt 0:01:11]} 27. Nxf3 {[%emt 0:01:01]} Qxf3+ {[%emt 0:00:34]} 28. Kg1 {[%emt 0:00:13]} a6 {[%emt 0:04:58]} 29. a4 {[%emt 0:01:11]} Kh8 {[%emt 0:02:41]} 30. a5 {[%emt 0:00:18]} Kg8 {[%emt 0:00:14]} 31. Qd3 {[%emt 0:00:44]} Kh8 {[%emt 0:05:10]} 32. Qb3 {[%emt 0:00:10]} f5 {[%emt 0:00:17]} 33. Qd3 {[%emt 0:02:03]} Re4 {[%emt 0:01:07]} 34. Rd2 {[%emt 0:01:03]} f4 {[%emt 0:00:49]} 35. gxf4 {[%emt 0:00:18]} Nxf4 {[%emt 0:00:57]} 36. Qf1 {[%emt 0:00:13]} Nh3+ {[%emt 0:00:20]} 37. Qxh3 {[%emt 0:00:11]} Qxh3 {[%emt 0:00:03]} 38. Kh1 {[%emt 0:00:09]} Qf3+ {[%emt 0:00:25]} 39. Kg1 {[%emt 0:00:08]} R8e6 {[%emt 0:00:18]} 40. Rd8+ {[%emt 0:00:11]} Kh7 {[%emt 0:00:23]} 41. Rd7 {[%emt 0:00:11]} Rg6+ {[%emt 0:00:35]} 42. Kf1 {[%emt 0:00:08]} Reg4 {[%emt 0:00:09]} 43. Bg5 {[%emt 0:00:08]} R6xg5 {[%emt 0:00:51]} 44. Rxb7 {[%emt 0:00:09]} Rg1# {[%emt 0:00:09]} 0-1

[Event "12th National Amateur Chess-ch 2025"]
[Site "Bihar"]
[Date "2025.03.28"]
[Round "6.13"]
[White "Bristy Mukherjee"]
[Black "Aamuktha Guntaka"]
[Result "1-0"]
[Annotator "TA"]
[ECO "A03"]
[WhiteElo "1985"]
[BlackElo "1910"]
[PlyCount "81"]
[EventDate "2025.03.25"]
[EventCountry "IND"]
[SourceTitle "playchess.com"]
[Source "ChessBase"]
[SourceQuality "1"]
[TimeControl "5400+30"]

{[%evp 12,81,-6,-5,1,-24,-12,-13,-10,-48,-31,-39,-8,-2,18,0,25,17,78,7,1,0,0,0,-22,-45,37,33,45,45,45,6,17,13,27,25,47,9,8,8,3,15,28,-8,-8,-7,0,0,0,0,0,0,0,0,55,56,110,110,112,112,114,103,103,104,104,104,104,104,29971,29972,29993,29994]} 1. f4 {[%emt 0:00:53]} d5 {[%emt 0:00:25]} 2. g3 {[%emt 0:01:08]} Nf6 {[%emt 0:00:08]} 3. Bg2 {[%emt 0:00:07]} c5 {[%emt 0:01:24]} 4. d3 {[%emt 0:00:44]} Nc6 {[%emt 0:01:39]} 5. Nf3 {[%emt 0:00:55]} g6 {[%emt 0:00:55]} 6. O-O {[%emt 0:02:27]} Bg7 {[%emt 0:00:52]} 7. Qe1 {[%emt 0:00:42]} d4 {[%emt 0:06:07] outshines the older 7...0-0. A03: Bird's Opening with 1...d5.} 8. c4 {[%emt 0:08:05]} O-O {[%emt 0:05:20]} 9. Na3 {[%emt 0:04:03]} Re8 {[%emt 0:02:34] The position is equal.} 10. Nc2 {[%emt 0:02:38]} a5 $1 {[%emt 0:08:10]} 11. h3 {[%emt 0:03:19][%cal Bh2h3,Bh3g4,Bg4g5][%mdl 32]} Nb4 {[%emt 0:11:31]} 12. Na3 {[%emt 0:23:03]} Qb6 $146 {[%emt 0:12:55]} (12... Nd7 13. Qf2 Rb8 14. Nb5 b6 15. a3 Nc6 16. Ng5 Bb7 17. f5 Nf6 18. Bf4 Rc8 {0-1 Harsha,B (2527)-Aleksandrov,A (2391) Wch Blitz Almaty 2022 (21)}) 13. Bd2 {[%emt 0:07:11]} h5 {[%emt 0:08:46]} 14. Qf2 {[%emt 0:03:27]} Nd7 {[%emt 0:06:51]} (14... Rf8 $11 {keeps the balance.}) 15. g4 {[%emt 0:01:32]} ({Better is} 15. Nb5 $16) 15... hxg4 $1 $11 {[%emt 0:03:23]} 16. hxg4 {[%emt 0:00:41]} Nf6 $1 {[%emt 0:02:13][%cal Bd7f6,Bf6g4,Bg4e3][%mdl 32]} 17. g5 {[%emt 0:06:06]} Ng4 {[%emt 0:02:24]} 18. Qh4 {[%emt 0:01:28]} Nc6 {[%emt 0:03:49]} ({Black should try} 18... f5 $15) 19. Nb5 $14 {[%emt 0:01:29]} Ne3 {[%emt 0:02:00]} 20. Bxe3 {[%emt 0:08:25] Successful Defense White} dxe3 {[%emt 0:00:12]} 21. Nh2 {[%emt 0:00:36]} Nd4 {[%emt 0:05:53]} 22. Nxd4 {[%emt 0:02:52]} Bxd4 {[%emt 0:00:10]} 23. Rab1 {[%emt 0:00:55]} Bf5 {[%emt 0:06:52][%cal Ob6c7]} (23... Bxb2 $6 24. Be4 $16) 24. Be4 {[%emt 0:01:02]} e6 {[%emt 0:00:44]} 25. Nf3 {[%emt 0:01:39]} Bg7 {[%emt 0:01:29]} 26. Ne5 {[%emt 0:05:35]} Qc7 {[%emt 0:03:08] Repels Nd7} 27. Ng4 {[%emt 0:01:41]} (27. Qh2 {seems wilder.} Red8 28. Rf3 Bxe4 29. dxe4 Rd2 30. Ng4) 27... Bxg4 {[%emt 0:00:32]} 28. Qxg4 {[%emt 0:00:05]} Kf8 {[%emt 0:01:30]} 29. Kg2 {[%emt 0:00:39]} Ke7 {[%emt 0:01:06]} 30. b3 {[%emt 0:00:14]} Rh8 {[%emt 0:00:32]} 31. Rh1 {[%emt 0:00:33]} Bd4 {[%emt 0:01:18]} 32. Qf3 {[%emt 0:00:14]} Rxh1 {[%emt 0:01:00]} (32... Rab8 $1 $11) 33. Rxh1 {[%emt 0:00:04][%cal Oe4g6]} ({Don't play} 33. Kxh1 Rh8+ 34. Kg2 Qb6 $15) 33... a4 {[%emt 0:00:25] [#]} (33... Rh8 $14) 34. Bxg6 $1 $16 {[%emt 0:02:04] Black must now prevent Rh7.} Rh8 {[%emt 0:00:28]} (34... axb3 35. axb3) 35. Rxh8 {[%emt 0:00:29]} Bxh8 {[%emt 0:00:04][%mdl 4096] Endgame KQB-KQB. White is a pawn up.} 36. Be4 {[%emt 0:00:46]} axb3 {[%emt 0:00:26]} 37. axb3 {[%emt 0:00:06]} (37. Bxb7 $2 {perishes.} bxa2 38. Be4 a1=Q $19 (38... a1=B $2 39. Qxe3 Bac3 40. Qg3 $19)) 37... Bd4 {[%emt 0:00:10]} 38. Bxb7 {[%emt 0:06:37]} Qb6 {[%emt 0:00:10]} 39. Qc6 {[%emt 0:01:44]} Qxb3 {[%emt 0:00:53][%mdl 8192] [#]} (39... Qa5 $16) 40. f5 $1 {[%emt 0:00:32][%cal Bf4f5,Bf5f6][%mdl 544]} Kf8 {[%emt 0:01:29]} (40... Qb2 41. Qc7+) 41. f6 {[%emt 0:00:21] Weighted Error Value: White=0.11 (very precise) /Black=0.31  Loses game:     	---       	Black=1      Mistake:       	White=1     	Black=4      Inaccurate:     	White=4     	Black=1      OK:         	White=12    	Black=15     Best:        	White=2     	---        Strong:       	---       	Black=3      Brilliant:      	White=1     	---} 1-0

[Event "12th National Amateur Chess-ch 2025"]
[Site "Bihar"]
[Date "2025.03.28"]
[Round "6.14"]
[White "Arushi Severin Helen D Silva"]
[Black "Chinnam Vyshnavi"]
[Result "1/2-1/2"]
[Annotator "NA RC"]
[ECO "D02"]
[WhiteElo "1746"]
[BlackElo "1793"]
[PlyCount "128"]
[EventDate "2025.03.25"]
[EventCountry "IND"]
[SourceTitle "playchess.com"]
[Source "ChessBase"]
[SourceQuality "1"]
[TimeControl "5400+30"]

1. d4 {[%emt 0:00:58]} d5 {[%emt 0:00:56]} 2. Nf3 {[%emt 0:00:30]} Nf6 {[%emt 0:00:17]} 3. Bf4 {[%emt 0:00:30]} c5 {[%emt 0:00:41]} 4. e3 {[%emt 0:00:28]} Nc6 {[%emt 0:00:14]} 5. Nbd2 {[%emt 0:00:41]} Qb6 {[%emt 0:00:43]} 6. dxc5 {[%emt 0:00:36]} Qxb2 {[%emt 0:00:25]} 7. Rb1 {[%emt 0:01:56]} Qc3 {[%emt 0:00:16]} 8. Bb5 {[%emt 0:00:43]} g6 {[%emt 0:00:25]} 9. O-O {[%emt 0:02:09]} Bg7 {[%emt 0:00:13]} 10. Nd4 {[%emt 0:04:33]} Bd7 {[%emt 0:00:17]} 11. N2b3 {[%emt 0:03:05]} O-O {[%emt 0:11:02]} 12. a4 {[%emt 0:23:09]} a6 {[%emt 0:17:53]} 13. Bd3 {[%emt 0:04:13]} Nh5 {[%emt 0:09:30]} 14. Bc7 {[%emt 0:07:21]} Qb4 {[%emt 0:23:45]} 15. Be2 {[%emt 0:14:39]} Nf6 {[%emt 0:05:48]} 16. Ra1 {[%emt 0:03:05]} Ne4 {[%emt 0:03:53]} 17. Bf3 {[%emt 0:04:14]} Nxd4 {[%emt 0:06:50]} 18. exd4 {[%emt 0:04:36]} Bxa4 {[%emt 0:00:23]} 19. Ba5 {[%emt 0:01:07]} Qb5 {[%emt 0:00:32]} 20. Be2 {[%emt 0:00:41]} Qd7 {[%emt 0:00:54]} 21. f3 {[%emt 0:03:08]} Nf6 {[%emt 0:02:16]} 22. Bc3 {[%emt 0:01:26]} Bb5 {[%emt 0:00:58]} 23. Rb1 {[%emt 0:03:19]} Qe6 {[%emt 0:02:07]} 24. Rf2 {[%emt 0:03:34]} Bc6 {[%emt 0:00:43]} 25. Bd3 {[%emt 0:01:51]} Nh5 {[%emt 0:01:21]} 26. f4 {[%emt 0:02:07]} f5 {[%emt 0:00:06]} 27. Re2 {[%emt 0:01:06]} Qd7 {[%emt 0:00:27]} 28. Qe1 {[%emt 0:00:48]} Rfe8 {[%emt 0:03:02]} 29. g3 {[%emt 0:00:59]} Nf6 {[%emt 0:00:10]} 30. Na5 {[%emt 0:01:28]} Ne4 {[%emt 0:00:18]} 31. Rb6 {[%emt 0:00:31]} Rec8 {[%emt 0:01:52]} 32. Ba1 {[%emt 0:00:29]} e6 {[%emt 0:01:02]} 33. Qb1 {[%emt 0:01:14]} Ra7 {[%emt 0:00:44]} 34. Kf1 {[%emt 0:01:02]} Bf6 {[%emt 0:00:21]} 35. Rb4 {[%emt 0:01:44]} Bd8 {[%emt 0:00:33]} 36. Nxc6 {[%emt 0:00:34]} Qxc6 {[%emt 0:00:23]} 37. Bxe4 {[%emt 0:00:13]} fxe4 {[%emt 0:00:33]} 38. c4 {[%emt 0:01:09]} Ba5 {[%emt 0:01:19]} 39. cxd5 {[%emt 0:00:42]} exd5 {[%emt 0:00:25]} 40. Rb3 {[%emt 0:00:09]} Bd8 {[%emt 0:04:28]} 41. Bc3 {[%emt 0:00:33]} Rb8 {[%emt 0:01:36]} 42. Reb2 {[%emt 0:00:59]} Bc7 {[%emt 0:01:13]} 43. Qa2 {[%emt 0:00:31]} Kg7 {[%emt 0:00:25]} 44. Ba5 {[%emt 0:00:26]} Bxa5 {[%emt 0:00:31]} 45. Qxa5 {[%emt 0:00:05]} Qd7 {[%emt 0:00:26]} 46. Qb6 {[%emt 0:00:58]} Raa8 {[%emt 0:00:33]} 47. Qa5 {[%emt 0:00:47]} Qh3+ {[%emt 0:00:35]} 48. Kg1 {[%emt 0:00:30]} Qd7 {[%emt 0:00:10]} 49. Kg2 {[%emt 0:00:10]} Kh6 {[%emt 0:00:43]} 50. Rb6 {[%emt 0:00:37]} Qg4 {[%emt 0:00:25]} 51. Qc3 {[%emt 0:00:25]} Rf8 {[%emt 0:00:37]} 52. Qe3 {[%emt 0:00:26]} Rf5 {[%emt 0:00:36]} 53. h3 {[%emt 0:00:08]} Qd1 {[%emt 0:00:13]} 54. g4 {[%emt 0:00:10]} Rf7 {[%emt 0:00:31]} 55. Rxb7 {[%emt 0:00:23]} Raf8 {[%emt 0:00:28]} 56. Rxf7 {[%emt 0:02:13]} Rxf7 {[%emt 0:00:00]} 57. c6 {[%emt 0:00:27]} Qa4 {[%emt 0:00:52]} 58. Rb7 {[%emt 0:01:02]} Rxb7 {[%emt 0:00:52]} 59. cxb7 {[%emt 0:00:10]} Qb5 {[%emt 0:00:15]} 60. Qa3 {[%emt 0:01:14]} Qe2+ {[%emt 0:00:48]} 61. Kg3 {[%emt 0:00:05]} Qe1+ {[%emt 0:00:13]} 62. Kg2 {[%emt 0:00:06]} Qe2+ {[%emt 0:00:11]} 63. Kg3 {[%emt 0:00:05]} Qe1+ {[%emt 0:00:35]} 64. Kg2 {[%emt 0:00:06]} Qe2+ {[%emt 0:00:03]} 1/2-1/2

[Event "12th National Amateur Chess-ch 2025"]
[Site "Bihar"]
[Date "2025.03.28"]
[Round "6.15"]
[White "Prakash Vaishnavi"]
[Black "Theephigaa K P"]
[Result "0-1"]
[Annotator "NA RC"]
[ECO "C55"]
[WhiteElo "1749"]
[BlackElo "1792"]
[PlyCount "68"]
[EventDate "2025.03.25"]
[EventCountry "IND"]
[SourceTitle "playchess.com"]
[Source "ChessBase"]
[SourceQuality "1"]
[TimeControl "5400+30"]

1. e4 {[%emt 0:00:02]} e5 {[%emt 0:09:41]} 2. Nf3 {[%emt 0:00:03]} Nc6 {[%emt 0:00:19]} 3. Bc4 {[%emt 0:00:07]} Nf6 {[%emt 0:00:11]} 4. d3 {[%emt 0:00:07]} h6 {[%emt 0:00:25]} 5. c3 {[%emt 0:01:59]} d6 {[%emt 0:00:23]} 6. O-O {[%emt 0:00:53]} g5 {[%emt 0:01:22]} 7. Nbd2 {[%emt 0:14:03]} Bg7 {[%emt 0:02:03]} 8. d4 {[%emt 0:15:53]} O-O {[%emt 0:24:24]} 9. dxe5 {[%emt 0:01:35]} dxe5 {[%emt 0:07:15]} 10. Qe2 {[%emt 0:03:07]} Qe7 {[%emt 0:08:53]} 11. Rd1 {[%emt 0:05:09]} Rd8 {[%emt 0:07:26]} 12. Bd3 {[%emt 0:01:47]} Nh5 {[%emt 0:06:24]} 13. Nf1 {[%emt 0:05:33]} Nf4 {[%emt 0:02:57]} 14. Bxf4 {[%emt 0:00:29]} gxf4 {[%emt 0:05:18]} 15. Bc4 {[%emt 0:02:53]} Bg4 {[%emt 0:01:59]} 16. h3 {[%emt 0:05:59]} Bh5 {[%emt 0:01:25]} 17. Rxd8+ {[%emt 0:00:34]} Rxd8 {[%emt 0:01:04]} 18. Rd1 {[%emt 0:00:05]} Rf8 {[%emt 0:16:19]} 19. g4 {[%emt 0:02:06]} Bg6 {[%emt 0:01:24]} 20. N1h2 {[%emt 0:01:54]} Rd8 {[%emt 0:00:41]} 21. Bd3 {[%emt 0:01:28]} Qf6 {[%emt 0:00:29]} 22. Kg2 {[%emt 0:01:14]} Qe7 {[%emt 0:00:29]} 23. Rd2 {[%emt 0:03:27]} Bf6 {[%emt 0:00:33]} 24. Rd1 {[%emt 0:00:25]} Rd6 {[%emt 0:00:26]} 25. Ne1 {[%emt 0:02:55]} Nd8 {[%emt 0:00:35]} 26. f3 {[%emt 0:00:47]} Bh4 {[%emt 0:00:22]} 27. Nc2 {[%emt 0:01:40]} Qd7 {[%emt 0:00:37]} 28. Nf1 {[%emt 0:00:56]} Ne6 {[%emt 0:00:28]} 29. Bb5 {[%emt 0:05:40]} c6 {[%emt 0:00:26]} 30. Rxd6 {[%emt 0:00:04]} Qxd6 {[%emt 0:00:10]} 31. Bc4 {[%emt 0:00:25]} Nc5 {[%emt 0:00:52]} 32. Nb4 {[%emt 0:02:24]} b5 {[%emt 0:00:29]} 33. Bb3 {[%emt 0:01:01]} a5 {[%emt 0:00:18]} 34. Nc2 {[%emt 0:00:13]} a4 {[%emt 0:00:29]} 0-1

[Event "12th National Amateur Chess-ch 2025"]
[Site "Bihar"]
[Date "2025.03.28"]
[Round "6.16"]
[White "Sravyasree Bheemarasetty"]
[Black "Nivedita V C"]
[Result "0-1"]
[Annotator "TA"]
[ECO "A07"]
[WhiteElo "1828"]
[BlackElo "1950"]
[PlyCount "134"]
[EventDate "2025.03.25"]
[EventCountry "IND"]
[SourceTitle "playchess.com"]
[Source "ChessBase"]
[SourceQuality "1"]
[TimeControl "5400+30"]

{[%evp 15,133,3,14,-25,-8,-3,-3,-25,0,-47,-29,-70,-74,-92,-98,-126,-129,-133,-53,-67,-66,-124,-111,-124,-119,-116,-114,-129,-135,-197,-182,-208,-179,-191,-193,-196,-188,-197,-179,-213,-77,-191,-84,-109,-72,-89,44,-176,-161,-124,-161,-117,-102,-87,-57,-55,-53,-53,-48,-31,-3,-4,-2,-50,-10,-52,0,0,0,0,0,-8,-8,-127,-117,-206,-251,-233,-264,-302,-109,-490,-488,-1405,-1265,-1204,-1150,-1237,-1131,-1016,-860,-1549,-1470,-1246,-1225,-29980,-29981,-29981,-29982,-29982,-29983,-29983,-29984,-29984,-29984,-29984,-29985,-29985,-29986,-29987,-29988,-29986,-29987,-29987,-29987,-29997,-29998,-29998,-29999,-29999]} 1. Nf3 {[%emt 0:00:08]} Nf6 {[%emt 0:00:35]} 2. g3 {[%emt 0:00:08]} g6 {[%emt 0:00:35]} 3. Bg2 {[%emt 0:00:08]} Bg7 {[%emt 0:00:04]} 4. O-O {[%emt 0:00:06]} O-O {[%emt 0:00:03]} 5. d3 {[%emt 0:00:05]} d5 {[%emt 0:00:03]} 6. Nbd2 {[%emt 0:00:14]} Nc6 {[%emt 0:01:03]} 7. e4 {[%emt 0:01:24]} dxe4 {[%emt 0:16:37]} 8. dxe4 {[%emt 0:00:08]} e5 {[%emt 0:00:22]} 9. h3 {[%emt 0:03:40] A07: Réti Opening: New York and Capablanca Systems.} Qe7 {[%emt 0:01:20]} 10. Qe2 {[%emt 0:15:01]} Rd8 {[%emt 0:14:00]} 11. c3 {[%emt 0:11:28] The position is symmetric and equal. The position is equal.} a5 $146 {[%emt 0:01:35]} ({Predecessor:} 11... b6 12. b4 Bb7 13. Nc4 b5 14. Ncd2 Nb8 15. a4 a6 16. axb5 axb5 17. Rxa8 Bxa8 {½-½ Ootes,L (2422)-Lemeaux,D (2315) Barcelona Sants op-A18th 2016 (9)}) 12. b3 {[%emt 0:06:12]} (12. a4 $11 {should be considered.}) 12... b6 {[%emt 0:05:30]} 13. Bb2 {[%emt 0:05:13]} Ba6 {[%emt 0:01:23] Black is more active.} 14. c4 {[%emt 0:00:41]} Nd7 {[%emt 0:05:03]} 15. Rfd1 {[%emt 0:09:04]} Nc5 {[%emt 0:05:38]} 16. Nf1 {[%emt 0:06:20]} a4 {[%emt 0:06:41]} (16... Bb7 $1 $17 17. Rxd8+ Rxd8) 17. Ba3 $1 $15 {[%emt 0:07:14]} Rxd1 {[%emt 0:08:38]} (17... axb3 18. axb3 Bb7 19. Bxc5 Qxc5 20. Rxd8+ Rxd8 (20... Nxd8 21. Rxa8 Bxa8 22. Qc2 $11) 21. Ne3 $11) 18. Rxd1 {[%emt 0:04:20]} (18. Qxd1 $15 Rd8 19. Qe1) 18... axb3 $17 {[%emt 0:00:39] Black plays on the queen side and is better} 19. Bxc5 {[%emt 0:00:57]} bxc5 {[%emt 0:00:21]} (19... Qxc5 20. axb3 Bh6 21. Kh2 $15) 20. axb3 {[%emt 0:00:31]} Nd4 $36 {[%emt 0:00:21][%mdl 2048] Black has strong initiative.} 21. Nxd4 {[%emt 0:01:45]} cxd4 {[%emt 0:00:38][%csl Od4] Black has a strong passed pawn} (21... exd4 22. e5 Ra7 (22... Qxe5 $2 23. Qxe5 Bxe5 24. Bxa8 $18) 23. f4 $15) 22. Rd3 {[%emt 0:05:35]} (22. Ra1 $17) 22... Qa3 {[%emt 0:01:39]} 23. f4 {[%emt 0:03:49]} Rb8 {[%emt 0:01:52]} 24. Nd2 {[%emt 0:01:51]} Bc8 {[%emt 0:02:39]} 25. Kh2 {[%emt 0:02:56]} Qc1 {[%emt 0:06:17]} 26. fxe5 {[%emt 0:02:38]} Qb2 {[%emt 0:02:21][%cal Oc7c5]} (26... Bxe5 27. Nf3 Bd6 28. Nxd4 $11) 27. Qd1 {[%emt 0:02:04]} Bb7 {[%emt 0:02:36]} (27... Bxe5 28. Nf3 Bd6 29. e5 $14) (27... c5 $19 {[%cal Oc8e6]} 28. h4 Bxe5) 28. Qg4 {[%emt 0:07:56]} (28. b4 $17) 28... Bxe5 {[%emt 0:02:36]} (28... Qc2 $1 $19 {[%cal Rc2d3]} 29. Rxd4 Bxe5) 29. Nf3 {[%emt 0:00:37]} Bg7 {[%emt 0:01:04] A strong pair of Bishops.} 30. Qf4 {[%emt 0:02:19] [#]} Re8 {[%emt 0:02:07]} (30... Rf8 $1 $17 31. Qd2 Qxd2 32. Rxd2 Rd8 (32... Bxe4 33. Nxd4 Bxg2 34. Kxg2 $15)) 31. Ng5 $2 {[%emt 0:00:39]} (31. Qxc7 $14 {was the only good move.} Bxe4 32. Rd2 Qxb3 33. Ng5 (33. Nxd4 $2 Qe3 $19)) 31... Re7 $19 {[%emt 0:02:53]} 32. Rd2 {[%emt 0:00:23]} Qxb3 {[%emt 0:00:42]} 33. Nxh7 {[%emt 0:00:32]} Be5 {[%emt 0:07:18]} 34. Qh4 {[%emt 0:00:26]} Qxg3+ {[%emt 0:00:38]} 35. Qxg3 {[%emt 0:00:08]} Bxg3+ {[%emt 0:00:02]} 36. Kxg3 {[%emt 0:00:06]} Kxh7 {[%emt 0:00:03]} 37. Rxd4 $17 {[%emt 0:00:05][%mdl 4096] Endgame KRB-KRB} c5 {[%emt 0:00:03]} 38. Rd2 {[%emt 0:01:23]} g5 {[%emt 0:01:07]} 39. Re2 {[%emt 0:00:48]} (39. h4 $11) 39... f5 {[%emt 0:00:38]} 40. e5 {[%emt 0:00:33]} f4+ {[%emt 0:00:50]} (40... Bxg2 $15 41. Kxg2 Kg6) 41. Kg4 $1 $11 {[%emt 0:00:33] and Bxb7 should not be overlooked} (41. Kf2 Bc8 42. Be4+ Kg7 $17) 41... Bxg2 {[%emt 0:00:07]} 42. Rxg2 {[%emt 0:00:02]} Rxe5 {[%emt 0:00:02] KR-KR. Black is a pawn up.} 43. h4 {[%emt 0:00:42]} gxh4 {[%emt 0:02:01]} 44. Kxf4 {[%emt 0:00:05]} (44. Rh2 $11 {remains equal.}) 44... Rh5 {[%emt 0:00:34] Black converts the advantage convincingly.} 45. Kg4 {[%emt 0:00:19] [#]} (45. Rd2 $17) 45... h3 $1 $19 {[%emt 0:00:48]} 46. Rh2 {[%emt 0:00:23]} Kg6 {[%emt 0:00:05]} 47. Kg3 {[%emt 0:01:11]} Kf5 $2 {[%emt 0:00:32]} (47... Rh7 $19 {is more deadly. and ...Kg5 should not be overlooked} 48. Kf2 Rh4) 48. Kf3 $2 {[%emt 0:00:36][%mdl 8192]} (48. Rd2 $17 {nothing else works.}) 48... Rh6 {[%emt 0:00:06]} 49. Ke3 {[%emt 0:00:40]} (49. Kf2 $142 Ke4 50. Kg1) 49... Kg4 {[%emt 0:00:05]} 50. Kf2 {[%emt 0:00:36]} Ra6 {[%emt 0:01:19]} 51. Rh1 {[%emt 0:00:31] Dodges Ra1} Ra2+ {[%emt 0:00:05]} 52. Ke3 {[%emt 0:00:18]} Kg3 {[%emt 0:00:05]} 53. Rg1+ {[%emt 0:00:27]} Rg2 {[%emt 0:00:06]} 54. Rf1 {[%emt 0:00:46]} h2 {[%emt 0:00:34]} 55. Rf6 {[%emt 0:00:27]} h1=Q {[%emt 0:00:20] Black mates.} 56. Rg6+ {[%emt 0:00:03]} Kh2 {[%emt 0:00:05]} 57. Rh6+ {[%emt 0:00:04]} Kg1 {[%emt 0:00:02]} 58. Rxh1+ {[%emt 0:00:07]} Kxh1 {[%emt 0:00:03] KR-KP} 59. Ke4 {[%emt 0:00:04]} Kh2 {[%emt 0:00:07]} 60. Kd5 {[%emt 0:00:03]} Rg5+ {[%emt 0:00:03]} 61. Kc6 {[%emt 0:00:05]} Kg3 {[%emt 0:00:11]} 62. Kb5 {[%emt 0:00:04]} Kf4 {[%emt 0:00:03]} 63. Ka4 {[%emt 0:00:04]} Ke4 {[%emt 0:00:04]} 64. Kb5 {[%emt 0:00:05]} Kd4 {[%emt 0:00:22]} 65. Ka4 {[%emt 0:00:08]} Kxc4 {[%emt 0:00:04]} 66. Ka3 {[%emt 0:00:04]} Rg2 {[%emt 0:00:03]} 67. Ka4 {[%emt 0:00:03]} Ra2# {[%emt 0:00:05] Weighted Error Value: White=0.67/Black=0.22 (precise)   Loses game:     	White=2     	---        Missed win:     	---       	Black=1      Mistake:       	White=8     	Black=5      Inaccurate:     	White=2     	Black=4      OK:         	White=11    	Black=12     Best:        	White=2     	Black=4      Strong:       	White=2     	Black=1} 0-1

[Event "12th National Amateur Chess-ch 2025"]
[Site "Bihar"]
[Date "2025.03.28"]
[Round "6.17"]
[White "Vaishnavi Radhakrishnan"]
[Black "Aayusree Sarkar"]
[Result "0-1"]
[Annotator "NA RC"]
[ECO "C55"]
[WhiteElo "1658"]
[BlackElo "1677"]
[PlyCount "60"]
[EventDate "2025.03.25"]
[EventCountry "IND"]
[SourceTitle "playchess.com"]
[Source "ChessBase"]
[SourceQuality "1"]
[TimeControl "5400+30"]

1. e4 {[%emt 0:00:09]} e5 {[%emt 0:00:11]} 2. Nf3 {[%emt 0:01:30]} Nc6 {[%emt 0:00:17]} 3. Bc4 {[%emt 0:01:17]} Nf6 {[%emt 0:00:15]} 4. d3 {[%emt 0:01:33]} Be7 {[%emt 0:00:13]} 5. O-O {[%emt 0:00:54]} O-O {[%emt 0:00:20]} 6. c3 {[%emt 0:02:01]} d5 {[%emt 0:01:03]} 7. exd5 {[%emt 0:00:23]} Nxd5 {[%emt 0:00:09]} 8. h3 {[%emt 0:00:28]} a6 {[%emt 0:00:32]} 9. a4 {[%emt 0:01:05]} Bf5 {[%emt 0:02:18]} 10. Be3 {[%emt 0:06:04]} Bf6 {[%emt 0:19:28]} 11. Qe2 {[%emt 0:04:34]} Nb6 {[%emt 0:03:47]} 12. Bxb6 {[%emt 0:03:01]} cxb6 {[%emt 0:00:06]} 13. Na3 {[%emt 0:01:15]} Re8 {[%emt 0:02:06]} 14. Rad1 {[%emt 0:00:34]} Qc7 {[%emt 0:02:09]} 15. Nc2 {[%emt 0:01:43]} e4 {[%emt 0:02:08]} 16. dxe4 {[%emt 0:00:24]} Bxe4 {[%emt 0:00:11]} 17. Ne3 {[%emt 0:00:21]} Rac8 {[%emt 0:07:23]} 18. Rd2 {[%emt 0:02:20]} Bxf3 {[%emt 0:01:40]} 19. gxf3 {[%emt 0:01:07]} Qf4 {[%emt 0:02:10]} 20. Rfd1 {[%emt 0:05:29]} Be5 {[%emt 0:04:31]} 21. Kf1 {[%emt 0:02:49]} Qh2 {[%emt 0:00:50]} 22. Qd3 {[%emt 0:07:22]} Qxh3+ {[%emt 0:02:22]} 23. Ke2 {[%emt 0:00:13]} Bf6 {[%emt 0:05:50]} 24. Qc2 {[%emt 0:05:21]} Bg5 {[%emt 0:01:03]} 25. Qb3 {[%emt 0:05:35]} Ne5 {[%emt 0:01:23]} 26. Bd5 {[%emt 0:00:22]} Bxe3 {[%emt 0:00:37]} 27. Kxe3 {[%emt 0:06:34]} Nxf3+ {[%emt 0:01:02]} 28. Kd3 {[%emt 0:04:46]} Ne1+ {[%emt 0:00:10]} 29. Kd4 {[%emt 0:00:20]} Qg4+ {[%emt 0:00:06]} 30. Be4 {[%emt 0:00:13]} Qxe4# {[%emt 0:00:06]} 0-1